{"text_format":"3","workbook":"xlsx","n_sheets":7,"sheets":["Понеделник","Вторник","Сряда","Четвъртък","Петък","Събота","Неделя"],"not_rendered":{"defined_names":24},"read":"whole","date_system":"1900"}

{"sheet":"Понеделник","index":0,"n_rows":10,"n_cols":13,"rows_kept":10,"merged":[[1,1,2,1],[1,2,1,10],[1,11,1,12],[2,2,2,10],[2,11,2,12]]}
[null,"ГРАФИК НА СМЕНИТЕ"]
[null,"ПОНЕДЕЛНИК","За седмицата: ",{"$nulls":8},"ДАТА"]
[null,null,"Име на отдел: ",{"$nulls":8},"ОТДЕЛ"]
[null,"Име на служител","7:00 ч.","8:00 ч.","9:00 ч.","10:00 ч.","11:00 ч.","12:00 ч.","13:00 ч.","14:00 ч.","15:00 ч.","Болест?","СУМА"]
[null,"Радослав Б","мениджър","мениджър","мениджър","мениджър","мениджър","мениджър","мениджър","мениджър","мениджър",null,{"$f":"IFERROR(COUNTIF(Понеделник[[#This Row],[7:00 ч.]:[15:00 ч.]],\"*\"),\"\")","v":9}]
[null,"Стефан Ф",null,"касиер","касиер","касиер","касиер",{"$nulls":5},{"$f":"IFERROR(COUNTIF(Понеделник[[#This Row],[7:00 ч.]:[15:00 ч.]],\"*\"),\"\")","v":4}]
[null,"Райко Д",null,"приемчик","приемчик","приемчик","приемчик ","приемчик","приемчик","приемчик",null,null,{"$f":"IFERROR(COUNTIF(Понеделник[[#This Row],[7:00 ч.]:[15:00 ч.]],\"*\"),\"\")","v":7}]
[null,"Радослав Ч",null,"приемчик","приемчик","приемчик","приемчик ","приемчик","приемчик","приемчик",null,null,{"$f":"IFERROR(COUNTIF(Понеделник[[#This Row],[7:00 ч.]:[15:00 ч.]],\"*\"),\"\")","v":7}]
[null,"Веселин И",{"$nulls":10},{"$f":"IFERROR(COUNTIF(Понеделник[[#This Row],[7:00 ч.]:[15:00 ч.]],\"*\"),\"\")","v":0}]
[null,"Бойка С",{"$nulls":5},"касиер","касиер","касиер","касиер",null,{"$f":"IFERROR(COUNTIF(Понеделник[[#This Row],[7:00 ч.]:[15:00 ч.]],\"*\"),\"\")","v":4}]

{"sheet":"Вторник","index":1,"n_rows":10,"n_cols":13,"rows_kept":10,"merged":[[1,1,2,1],[1,2,1,10],[1,11,1,12],[2,2,2,10],[2,11,2,12]]}
[null,{"$f":"Заглавие_ГРАФИК_СМЕНИ","v":"ГРАФИК НА СМЕНИТЕ"}]
[null,"ВТОРНИК","За седмицата: ",{"$nulls":8},{"$f":"ДАТА","v":"ДАТА"}]
[null,null,"Име на отдел: ",{"$nulls":8},{"$f":"ОТДЕЛ","v":"ОТДЕЛ"}]
[null,"Име на служител","7:00 ч.","8:00 ч.","9:00 ч.","10:00 ч.","11:00 ч.","12:00 ч.","13:00 ч.","14:00 ч.","15:00 ч.","Болест?","СУМА"]
[null,"Радослав Б","мениджър","мениджър","мениджър","мениджър","мениджър","мениджър","мениджър","мениджър","мениджър",null,{"$f":"IFERROR(COUNTIF(Вторник[[#This Row],[7:00 ч.]:[15:00 ч.]],\"*\"),\"\")","v":9}]
[null,"Стефан Ф",null,"касиер","касиер","касиер","касиер",{"$nulls":5},{"$f":"IFERROR(COUNTIF(Вторник[[#This Row],[7:00 ч.]:[15:00 ч.]],\"*\"),\"\")","v":4}]
[null,"Райко Д",null,"приемчик","приемчик","приемчик","приемчик ","приемчик","приемчик","приемчик",null,null,{"$f":"IFERROR(COUNTIF(Вторник[[#This Row],[7:00 ч.]:[15:00 ч.]],\"*\"),\"\")","v":7}]
[null,"Радослав Ч",null,"приемчик","приемчик","приемчик","приемчик ","приемчик","приемчик","приемчик",null,null,{"$f":"IFERROR(COUNTIF(Вторник[[#This Row],[7:00 ч.]:[15:00 ч.]],\"*\"),\"\")","v":7}]
[null,"Веселин И",{"$nulls":9},"Болест",{"$f":"IFERROR(COUNTIF(Вторник[[#This Row],[7:00 ч.]:[15:00 ч.]],\"*\"),\"\")","v":0}]
[null,"Бойка С",{"$nulls":5},"касиер","касиер","касиер","касиер",null,{"$f":"IFERROR(COUNTIF(Вторник[[#This Row],[7:00 ч.]:[15:00 ч.]],\"*\"),\"\")","v":4}]

{"sheet":"Сряда","index":2,"n_rows":10,"n_cols":13,"rows_kept":10,"merged":[[1,1,2,1],[1,2,1,10],[1,11,1,12],[2,2,2,10],[2,11,2,12]]}
[null,{"$f":"Заглавие_ГРАФИК_СМЕНИ","v":"ГРАФИК НА СМЕНИТЕ"}]
[null,"СРЯДА","За седмицата: ",{"$nulls":8},{"$f":"ДАТА","v":"ДАТА"}]
[null,null,"Име на отдел: ",{"$nulls":8},{"$f":"ОТДЕЛ","v":"ОТДЕЛ"}]
[null,"Име на служител","7:00 ч.","8:00 ч.","9:00 ч.","10:00 ч.","11:00 ч.","12:00 ч.","13:00 ч.","14:00 ч.","15:00 ч.","Болест?","СУМА"]
[null,"Радослав Б","мениджър","мениджър","мениджър","мениджър","мениджър","мениджър","мениджър","мениджър","мениджър",null,{"$f":"IFERROR(COUNTIF(Сряда[[#This Row],[7:00 ч.]:[15:00 ч.]],\"*\"),\"\")","v":9}]
[null,"Стефан Ф",null,"касиер","касиер","касиер","касиер",{"$nulls":5},{"$f":"IFERROR(COUNTIF(Сряда[[#This Row],[7:00 ч.]:[15:00 ч.]],\"*\"),\"\")","v":4}]
[null,"Райко Д",null,"приемчик","приемчик","приемчик","приемчик ","приемчик","приемчик","приемчик",null,null,{"$f":"IFERROR(COUNTIF(Сряда[[#This Row],[7:00 ч.]:[15:00 ч.]],\"*\"),\"\")","v":7}]
[null,"Радослав Ч",null,"приемчик","приемчик","приемчик","приемчик ","приемчик","приемчик","приемчик",null,null,{"$f":"IFERROR(COUNTIF(Сряда[[#This Row],[7:00 ч.]:[15:00 ч.]],\"*\"),\"\")","v":7}]
[null,"Веселин И",{"$nulls":9},"Болест",{"$f":"IFERROR(COUNTIF(Сряда[[#This Row],[7:00 ч.]:[15:00 ч.]],\"*\"),\"\")","v":0}]
[null,"Бойка С",{"$nulls":5},"касиер","касиер","касиер","касиер",null,{"$f":"IFERROR(COUNTIF(Сряда[[#This Row],[7:00 ч.]:[15:00 ч.]],\"*\"),\"\")","v":4}]

{"sheet":"Четвъртък","index":3,"n_rows":10,"n_cols":13,"rows_kept":10,"merged":[[1,1,2,1],[1,2,1,10],[1,11,1,12],[2,2,2,10],[2,11,2,12]]}
[null,{"$f":"Заглавие_ГРАФИК_СМЕНИ","v":"ГРАФИК НА СМЕНИТЕ"}]
[null,"ЧЕТВЪРТЪК","За седмицата: ",{"$nulls":8},{"$f":"ДАТА","v":"ДАТА"}]
[null,null,"Име на отдел: ",{"$nulls":8},{"$f":"ОТДЕЛ","v":"ОТДЕЛ"}]
[null,"Име на служител","7:00 ч.","8:00 ч.","9:00 ч.","10:00 ч.","11:00 ч.","12:00 ч.","13:00 ч.","14:00 ч.","15:00 ч.","Болест?","СУМА"]
[null,"Радослав Б","мениджър","мениджър","мениджър","мениджър","мениджър","мениджър","мениджър","мениджър","мениджър",null,{"$f":"IFERROR(COUNTIF(Четвъртък[[#This Row],[7:00 ч.]:[15:00 ч.]],\"*\"),\"\")","v":9}]
[null,"Стефан Ф",null,"касиер","касиер","касиер","касиер",{"$nulls":5},{"$f":"IFERROR(COUNTIF(Четвъртък[[#This Row],[7:00 ч.]:[15:00 ч.]],\"*\"),\"\")","v":4}]
[null,"Райко Д",null,"приемчик","приемчик","приемчик","приемчик ","приемчик","приемчик","приемчик",null,null,{"$f":"IFERROR(COUNTIF(Четвъртък[[#This Row],[7:00 ч.]:[15:00 ч.]],\"*\"),\"\")","v":7}]
[null,"Радослав Ч",null,"приемчик","приемчик","приемчик","приемчик ","приемчик","приемчик","приемчик",null,null,{"$f":"IFERROR(COUNTIF(Четвъртък[[#This Row],[7:00 ч.]:[15:00 ч.]],\"*\"),\"\")","v":7}]
[null,"Веселин И",{"$nulls":9},"Болест",{"$f":"IFERROR(COUNTIF(Четвъртък[[#This Row],[7:00 ч.]:[15:00 ч.]],\"*\"),\"\")","v":0}]
[null,"Бойка С",{"$nulls":5},"касиер","касиер","касиер","касиер",null,{"$f":"IFERROR(COUNTIF(Четвъртък[[#This Row],[7:00 ч.]:[15:00 ч.]],\"*\"),\"\")","v":4}]

{"sheet":"Петък","index":4,"n_rows":10,"n_cols":13,"rows_kept":10,"merged":[[1,1,2,1],[1,2,1,10],[1,11,1,12],[2,2,2,10],[2,11,2,12]]}
[null,{"$f":"Заглавие_ГРАФИК_СМЕНИ","v":"ГРАФИК НА СМЕНИТЕ"}]
[null,"ПЕТЪК","За седмицата: ",{"$nulls":8},{"$f":"ДАТА","v":"ДАТА"}]
[null,null,"Име на отдел: ",{"$nulls":8},{"$f":"ОТДЕЛ","v":"ОТДЕЛ"}]
[null,"Име на служител","7:00 ч.","8:00 ч.","9:00 ч.","10:00 ч.","11:00 ч.","12:00 ч.","13:00 ч.","14:00 ч.","15:00 ч.","Болест?","СУМА"]
[null,"Радослав Б","мениджър","мениджър","мениджър","мениджър","мениджър","мениджър","мениджър","мениджър","мениджър",null,{"$f":"IFERROR(COUNTIF(Петък[[#This Row],[7:00 ч.]:[15:00 ч.]],\"*\"),\"\")","v":9}]
[null,"Стефан Ф",null,"касиер","касиер","касиер","касиер",{"$nulls":5},{"$f":"IFERROR(COUNTIF(Петък[[#This Row],[7:00 ч.]:[15:00 ч.]],\"*\"),\"\")","v":4}]
[null,"Райко Д",null,"приемчик","приемчик","приемчик","приемчик ","приемчик","приемчик","приемчик",null,null,{"$f":"IFERROR(COUNTIF(Петък[[#This Row],[7:00 ч.]:[15:00 ч.]],\"*\"),\"\")","v":7}]
[null,"Радослав Ч",null,"приемчик","приемчик","приемчик","приемчик ","приемчик","приемчик","приемчик",null,null,{"$f":"IFERROR(COUNTIF(Петък[[#This Row],[7:00 ч.]:[15:00 ч.]],\"*\"),\"\")","v":7}]
[null,"Веселин И",{"$nulls":9},"Болест",{"$f":"IFERROR(COUNTIF(Петък[[#This Row],[7:00 ч.]:[15:00 ч.]],\"*\"),\"\")","v":0}]
[null,"Бойка С",{"$nulls":5},"касиер","касиер","касиер","касиер",null,{"$f":"IFERROR(COUNTIF(Петък[[#This Row],[7:00 ч.]:[15:00 ч.]],\"*\"),\"\")","v":4}]

{"sheet":"Събота","index":5,"n_rows":10,"n_cols":13,"rows_kept":10,"merged":[[1,1,2,1],[1,2,1,10],[1,11,1,12],[2,2,2,10],[2,11,2,12]]}
[null,{"$f":"Заглавие_ГРАФИК_СМЕНИ","v":"ГРАФИК НА СМЕНИТЕ"}]
[null,"СЪБОТА","За седмицата: ",{"$nulls":8},{"$f":"ДАТА","v":"ДАТА"}]
[null,null,"Име на отдел: ",{"$nulls":8},{"$f":"ОТДЕЛ","v":"ОТДЕЛ"}]
[null,"Име на служител","7:00 ч.","8:00 ч.","9:00 ч.","10:00 ч.","11:00 ч.","12:00 ч.","13:00 ч.","14:00 ч.","15:00 ч.","Болест?","СУМА"]
[null,"Радослав Б","мениджър","мениджър","мениджър","мениджър","мениджър","мениджър","мениджър","мениджър","мениджър",null,{"$f":"IFERROR(COUNTIF(Събота[[#This Row],[7:00 ч.]:[15:00 ч.]],\"*\"),\"\")","v":9}]
[null,"Стефан Ф",null,"касиер","касиер","касиер","касиер",{"$nulls":5},{"$f":"IFERROR(COUNTIF(Събота[[#This Row],[7:00 ч.]:[15:00 ч.]],\"*\"),\"\")","v":4}]
[null,"Райко Д",null,"приемчик","приемчик","приемчик","приемчик ","приемчик","приемчик","приемчик",null,null,{"$f":"IFERROR(COUNTIF(Събота[[#This Row],[7:00 ч.]:[15:00 ч.]],\"*\"),\"\")","v":7}]
[null,"Радослав Ч",null,"приемчик","приемчик","приемчик","приемчик ","приемчик","приемчик","приемчик",null,null,{"$f":"IFERROR(COUNTIF(Събота[[#This Row],[7:00 ч.]:[15:00 ч.]],\"*\"),\"\")","v":7}]
[null,"Веселин И",{"$nulls":9},"Болест",{"$f":"IFERROR(COUNTIF(Събота[[#This Row],[7:00 ч.]:[15:00 ч.]],\"*\"),\"\")","v":0}]
[null,"Бойка С",{"$nulls":5},"касиер","касиер","касиер","касиер",null,{"$f":"IFERROR(COUNTIF(Събота[[#This Row],[7:00 ч.]:[15:00 ч.]],\"*\"),\"\")","v":4}]

{"sheet":"Неделя","index":6,"n_rows":10,"n_cols":13,"rows_kept":10,"merged":[[1,1,2,1],[1,2,1,10],[1,11,1,12],[2,2,2,10],[2,11,2,12]]}
[null,{"$f":"Заглавие_ГРАФИК_СМЕНИ","v":"ГРАФИК НА СМЕНИТЕ"}]
[null,"НЕДЕЛЯ","За седмицата: ",{"$nulls":8},{"$f":"ДАТА","v":"ДАТА"}]
[null,null,"Име на отдел: ",{"$nulls":8},{"$f":"ОТДЕЛ","v":"ОТДЕЛ"}]
[null,"Име на служител","7:00 ч.","8:00 ч.","9:00 ч.","10:00 ч.","11:00 ч.","12:00 ч.","13:00 ч.","14:00 ч.","15:00 ч.","Болест?","СУМА"]
[null,"Радослав Б","мениджър","мениджър","мениджър","мениджър","мениджър","мениджър","мениджър","мениджър","мениджър",null,{"$f":"IFERROR(COUNTIF(Неделя[[#This Row],[7:00 ч.]:[15:00 ч.]],\"*\"),\"\")","v":9}]
[null,"Стефан Ф",null,"касиер","касиер","касиер","касиер",{"$nulls":5},{"$f":"IFERROR(COUNTIF(Неделя[[#This Row],[7:00 ч.]:[15:00 ч.]],\"*\"),\"\")","v":4}]
[null,"Райко Д",null,"приемчик","приемчик","приемчик","приемчик ","приемчик","приемчик","приемчик",null,null,{"$f":"IFERROR(COUNTIF(Неделя[[#This Row],[7:00 ч.]:[15:00 ч.]],\"*\"),\"\")","v":7}]
[null,"Радослав Ч",null,"приемчик","приемчик","приемчик","приемчик ","приемчик","приемчик","приемчик",null,null,{"$f":"IFERROR(COUNTIF(Неделя[[#This Row],[7:00 ч.]:[15:00 ч.]],\"*\"),\"\")","v":7}]
[null,"Веселин И",{"$nulls":9},"Болест",{"$f":"IFERROR(COUNTIF(Неделя[[#This Row],[7:00 ч.]:[15:00 ч.]],\"*\"),\"\")","v":0}]
[null,"Бойка С",{"$nulls":5},"касиер","касиер","касиер","касиер",null,{"$f":"IFERROR(COUNTIF(Неделя[[#This Row],[7:00 ч.]:[15:00 ч.]],\"*\"),\"\")","v":4}]